Cogmind - Beta 17 @@@ ROGUE MODE // 2026.07.18 @ 14:19:25 Player: TheTravelingGuy Result: Self-destructed Performance ------------- Evolutions (6) 3000 Regions Visited (13) 2600 Robots Destroyed (74) 370 Value Destroyed (2734) 2734 Prototype IDs (1) 20 Alien Tech Used (0) 0 Bonus (1800) 1800 TOTAL SCORE: 10524 Bonus ------- Entered DSFs 500 Acquired ECA 300 Met Warlord at Base 500 MAIN.C Attacked Warlord 500 Cogmind --------- Core Integrity 1048/1150 Matter 267/300 Energy 10/100 System Corruption 5% Temperature Warm (156) Movement Core (700) Ox13 Location -4/Factory Parts ------- > --- POWER (1) -------- (None) > --- PROPULSION (5) --- Improved Antigrav System Improved Antigrav System Improved Antigrav System Improved Antigrav System > --- UTILITY (9) ------ Improved Heat Sink Improved Heat Sink Advanced Weight Redist. System Advanced Sensor Array Advanced Signal Interpreter Improved Targeting Computer Improved Kinecellerator System Shield > --- WEAPON (4) ------- Phase Cannon Phase Cannon Phase Cannon Matter Neutralizer > --- INVENTORY (5) ---- Advanced Coolant Injector Advanced Coolant Injector Advanced Coolant Injector Compact Matter Pod (0) Improved Field Recycling Unit (10) Peak State ------------ > --- POWER ------------ Light Particle Reactor > --- PROPULSION ------- Improved Antigrav System Improved Antigrav System Improved Antigrav System Improved Antigrav System Improved Antigrav System > --- UTILITY ---------- Improved Heat Sink Improved Heat Sink Advanced Weight Redist. System Advanced Sensor Array Advanced Signal Interpreter Improved Targeting Computer Improved Kinecellerator Improved Propulsion Shielding System Shield > --- WEAPON ----------- High-powered Shock Rifle Improved Lightning Gun Tesla Rifle Matter Neutralizer > --- INVENTORY -------- Improved Field Recycling Unit Phase Cannon Phase Cannon [Rating: 101] Favorites ----------- Power Light Nuclear Core Engine Improved Ion Engine Power Core Light Nuclear Core Reactor Light Particle Reactor Propulsion Armored Medium Treads Treads Armored Medium Treads Leg Aluminum Leg Hover Unit Improved Antigrav System Utility Melee Analysis Suite Device Advanced Weight Redist. System Storage Small Storage Unit Processor Melee Analysis Suite Hackware System Shield Protection Hardened Heavy Armor Plating Weapon Phasing Sabre Energy Gun Medium Laser Energy Cannon Matter Neutralizer Ballistic Gun Assault Rifle Special Weapon Mining Laser Impact Weapon Maul Slashing Weapon Phasing Sabre Piercing Weapon Spear Build | -11 -10 -10 -9 -8 -7 -7 -6 -5 -5 -5 -5 -4 -4 ------- Run | Yrd Mat Min Mat Mat Fac DSF Fac Fac Upp Upp War Pro Fac Slots Evolved 12 | . . . 2 2 2 . 2 2 . . . . 2 Power . | . . . . . . . . . . . . . . Propulsion 3 | . . . 1 1 . . 1 . . . . . . Utility 7 | . . . . 1 1 . 1 2 . . . . 2 Weapon 2 | . . . 1 . 1 . . . . . . . . Parts Attached 104 | 7 2 1 18 8 1 12 9 9 6 5 . 3 23 Power 11 | . 1 1 3 . . . 1 . 1 2 . 1 1 Engine 4 | . 1 . 3 . . . . . . . . . . Core 6 | . . 1 . . . . 1 . 1 2 . 1 . Reactor 1 | . . . . . . . . . . . . . 1 Propulsion 27 | 2 . . 9 1 . 4 . 3 . 1 . 2 5 Treads 13 | 2 . . 3 1 . 1 . 3 . 1 . 2 . Leg 9 | . . . 6 . . 3 . . . . . . . Wheel . | . . . . . . . . . . . . . . Hover 5 | . . . . . . . . . . . . . 5 Flight . | . . . . . . . . . . . . . . Utility 30 | 2 . . . 3 1 2 4 6 1 1 . . 10 Device 11 | 1 . . . . . . 3 . 1 . . . 6 Storage 3 | 1 . . . 2 . . . . . . . . . Processor 8 | . . . . . . . . 6 . . . . 2 Hackware 3 | . . . . . 1 . 1 . . . . . 1 Protection 5 | . . . . 1 . 2 . . . 1 . . 1 Artifact . | . . . . . . . . . . . . . . Weapon 36 | 3 1 . 6 4 . 6 4 . 4 1 . . 7 Energy Gun 16 | 2 . . 2 3 . 6 . . . . . . 3 Energy Cannon 4 | . . . . . . . . . . . . . 4 Ballistic Gun 2 | 1 . . 1 . . . . . . . . . . Ballistic Cannon . | . . . . . . . . . . . . . . Launcher . | . . . . . . . . . . . . . . Special Weapon 2 | . 1 . 1 . . . . . . . . . . Impact Weapon 3 | . . . 2 1 . . . . . . . . . Slashing Weapon 5 | . . . . . . . . . 4 1 . . . Piercing Weapon 4 | . . . . . . . 4 . . . . . . Special Melee Weapon . | . . . . . . . . . . . . . . Unidentified Prototypes 1 | . . . . . . . . . . . . . 1 Parts Lost 39 | . 1 . 2 1 . 10 . 4 6 4 . 8 3 Power 8 | . . . 2 . . . . . 2 1 . 2 1 Propulsion 13 | . . . . . . 2 . 3 2 2 . 3 1 Utility 7 | . . . . . . 1 . 1 1 . . 3 1 Weapon 11 | . 1 . . 1 . 7 . . 1 1 . . . Highest Loss Streak 6 | . 1 . 1 1 . 6 . 3 4 4 . 6 3 To Critical Strikes 1 | . . . . . . . . . . 1 . . . Average Backups 4 | 5 7 8 6 9 11 11 10 11 2 1 . 1 2 Power . | 1 1 1 . . 2 2 1 . . . . . . Propulsion . | 2 3 4 1 . 1 . . . . . . . . Utility 1 | . . . . 3 4 4 6 7 1 . . . 1 Weapon 1 | 1 2 3 3 4 4 4 3 2 1 . . . . Tool/Special . | . . . . . . . . . . . . . . Unused Backups 28 | . 4 . 6 1 . 1 1 9 2 . . . 4 Power 1 | . . . . . . . 1 . . . . . . Propulsion 5 | . 3 . 2 . . . . . . . . . . Utility 14 | . 1 . . 1 . . . 6 2 . . . 4 Weapon 7 | . . . 3 . . 1 . 3 . . . . . Tool/Special 1 | . . . 1 . . . . . . . . . . Average Slot Usage (%) 87 | . 95 100 98 97 99 90 94 90 84 79 75 69 90 Engine 2 | . 10 1 7 9 7 7 1 . . . . . . Core 2 | . . 12 2 . . . 5 5 1 1 5 4 . Treads 15 | . 28 28 2 35 30 17 12 11 20 17 11 10 1 Leg 5 | . . . 29 . . 9 20 8 . . . . . Hover 1 | . . . . . . . . . . . . . 19 Device 10 | . 14 14 11 9 7 1 12 6 10 9 8 7 23 Storage 4 | . 14 14 11 9 7 7 6 4 . . . . . Processor 13 | . . . . . . . . 20 28 23 19 17 11 Hackware 1 | . . . . . 7 7 9 6 . . . . 3 Protection 2 | . . . . 8 7 13 1 . . 1 5 3 3 Energy Gun 5 | . 17 14 15 5 23 24 2 . . . . . 8 Ballistic Gun 2 | . 8 14 8 . . . . . . . . . . Impact Weapon 2 | . . . 4 17 . . . . . . . . . Slashing Weapon 8 | . . . . . . . . . 10 23 23 23 3 Piercing Weapon 3 | . . . . . . . 21 23 9 . . . . Peak Build Rating 101 | 6 7 9 13 18 22 38 49 65 68 73 64 66 101 Average Rating 46 | 4 6 8 10 16 21 28 45 51 64 66 63 58 90 On Entrance 33 | . 6 7 9 13 18 22 36 49 65 65 64 64 47 Avg Prop Armor Cover (%) 12 | . . . . . . 6 17 14 12 11 . . 10 Naked Turns . | . . . . . . . . . . . . . . Heaviest Build 58 | 10 15 15 20 44 45 53 49 34 21 50 41 41 58 Greatest Support 130 | 40 40 40 60 80 80 80 63 130 130 113 63 86 79 Greatest Overweight (x) 6 | . . . 6 . . 1 . 1 . . . 1 4 Average Overweight (x) . | . . . . . . . . . . . . . . Largest Inventory Capacity 15 | 8 8 8 8 15 15 15 15 15 5 5 5 5 5 Average Capacity 7 | 7 8 8 8 14 15 15 15 13 5 5 5 5 5 Most Carried 15 | 8 8 8 8 14 12 15 13 14 5 4 1 5 5 Average Carried 5 | 5 7 8 6 9 11 11 10 11 4 2 . 1 2 Final Capacity 15 | 8 8 8 8 15 15 15 15 5 5 5 5 5 5 Final Carried 14 | 8 8 8 8 13 11 14 10 5 3 1 . 5 5 Class Distribution -------------------- 35% | Derelict-Gladiator 20% | Mutant 17% | Gladiator 10% | Gunner 6% | Scavenger-Gunner 4% | Tank Dominant Class ---------------- Mutant | -10/Materials Mutant | -10/Mines Gunner | -9/Materials Mutant | -8/Materials Tank | -7/Factory Tank | -7/DSF Mutant | -6/Factory Gladiator | -5/Factory Gladiator | -5/Upper Caves Derelict-Gladiator | -5/Upper Caves Derelict-Gladiator | -5/Warlord Derelict-Gladiator | -4/Proximity Caves Scavenger-Gunner | -4/Factory Resources | -11 -10 -10 -9 -8 -7 -7 -6 -5 -5 -5 -5 -4 -4 ----------- Run | Yrd Mat Min Mat Mat Fac DSF Fac Fac Upp Upp War Pro Fac Matter Collected 1626 | 260 72 43 473 105 . 110 . 148 192 70 . 29 124 Remotely . | . . . . . . . . . . . . . . Salvage Created 3175 | 42 190 115 498 213 . 569 . 281 594 141 . 389 143 Parts 181 | 5 11 6 30 8 . 32 . 25 20 9 . 28 7 Haulers Intercepted 2 | . 1 . . 1 . . . . . . . . . Recyclers Shooed 4 | . . . 2 . . . . . . . . . 2 Parts Field Recycled 8 | . . . . . . . . . . . . . 8 Retrieved Matter 78 | . . . . . . . . . . . . . 78 Parts Self-Destructed 41 | . . . . . . . . . 13 7 . 21 . Prevented . | . . . . . . . . . . . . . . Parts Restored . | . . . . . . . . . . . . . . Kills | -11 -10 -10 -9 -8 -7 -7 -6 -5 -5 -5 -5 -4 -4 ------- Run | Yrd Mat Min Mat Mat Fac DSF Fac Fac Upp Upp War Pro Fac Combat Hostiles Destroyed 59 | . 3 2 10 3 . 8 . 5 14 4 . 8 2 Melee 33 | . . . 2 . . . . 5 14 4 . 8 . Guns 18 | . 3 2 6 . . 7 . . . . . . . Cannons 1 | . . . . . . . . . . . . . 1 AOE 1 | . . . . . . 1 . . . . . . . Classes Destroyed 13 | 1 3 . 1 . . 3 . 1 2 . . 1 1 Worker 2 | . . . . . . . . 2 . . . . . Builder 1 | . . . . . . . . . . . . . 1 Tunneler 3 | 2 . 1 . . . . . . . . . . . Hauler 2 | . 1 . . 1 . . . . . . . . . Watcher 4 | . 1 . 2 1 . . . . . . . . . Swarmer 20 | . . . . . . . . . 13 3 . 4 . Grunt 16 | . 3 2 5 . . 2 . 1 3 . . . . Sentry 12 | . . . 5 3 . 1 . . . 1 . 1 1 Specialist 3 | . . . . . . 3 . . . . . . . Programmer 8 | . . . . . . 1 . 4 . . . 2 1 Heavy 1 | . . . . . . 1 . . . . . . . Behemoth 1 | . . . . . . . . . . . . 1 . Mutant 1 | . . . . . . . . . 1 . . . . Best Kill Streak 8 | 2 2 2 2 1 . 2 . 2 8 3 . 4 2 Combat Bots Only 8 | . 2 2 2 1 . 2 . 2 8 3 . 4 1 Max Kills in Single Turn 2 | 1 1 1 1 1 . 1 . 1 2 1 . 2 1 Gunslinging . | . . . . . . . . . . . . . . Exploded 1 | . . . . . . 1 . . . . . . . Melee 2 | . . . 1 . . . . 1 2 1 . 2 . Uniques/NPCs Destroyed . | . . . . . . . . . . . . . . Combat | -11 -10 -10 -9 -8 -7 -7 -6 -5 -5 -5 -5 -4 -4 -------- Run | Yrd Mat Min Mat Mat Fac DSF Fac Fac Upp Upp War Pro Fac Hostile Shots Fired 547 | . 21 16 72 16 . 90 . 47 103 54 2 85 41 Missed 129 | . 7 8 14 2 . 28 . 13 23 10 1 13 10 Hits 418 | . 14 8 58 14 . 62 . 34 80 44 1 72 31 Projectile 418 | . 14 8 58 14 . 62 . 34 80 44 1 72 31 AOE 1 | . . . . . . . . 1 . . . . . Critical Strikes 23 | . . . 3 . . 8 . 3 1 1 . 5 2 Damage Taken 7971 | . 173 100 832 618 . 1217 . 767 1213 693 34 1699 625 Core 1197 | . 41 12 218 144 . 33 . 125 184 59 . 279 102 Absorbed by Shields . | . . . . . . . . . . . . . . Redirected to Shielding 110 | . . . . . . . . . . . . . 110 Regen/Repaired (Parts) 417 | . . . 26 128 . . . . . . 263 . . Core Remaining (%) 75 | 100 . 78 45 73 . 95 100 . . . . 35 . Volleys Fired 123 | 2 19 11 45 14 . 19 . . . . . . 13 Largest 4 | 2 2 2 3 3 . 4 . . . . . . 4 Hottest 290 | 100 120 70 165 135 . 180 . . . . . . 290 Shots Fired 233 | 4 33 22 76 18 . 64 . . . . . . 16 Gun 184 | 4 28 22 57 6 . 64 . . . . . . 3 Cannon 13 | . . . . . . . . . . . . . 13 Launcher . | . . . . . . . . . . . . . . Special 36 | . 5 . 19 12 . . . . . . . . . Kinetic 46 | . 9 11 26 . . . . . . . . . . Thermal 114 | 4 24 11 50 12 . . . . . . . . 13 Explosive . | . . . . . . . . . . . . . . Electromagnetic 73 | . . . . 6 . 64 . . . . . . 3 Robot Hit Streak 10 | 3 8 6 8 1 . 10 . . . . . . 9 Robot Miss Streak 6 | . 1 1 3 6 . 2 . . . . . . 1 Penetration Max . | . . . . . . . . . . . . . . Secondary Targets 4 | . . 1 1 . . 2 . . . . . . . Max Gunslinging Chain 1 | . . 1 1 . . 1 . . . . . . . Shots Hit Robots 273 | 3 23 17 51 14 . 58 . 26 34 9 . 28 10 Core Hits 125 | 2 10 7 17 2 . 40 . 10 18 5 . 12 2 Critical Kills 1 | . . . . . . . . . . . . . 1 Critical Parts Destroyed 7 | . . . 2 5 . . . . . . . . . Critical Strikes 24 | . . 1 4 6 . . . 3 5 3 . 1 1 Burn 3 | . . 1 2 . . . . . . . . . . Meltdown 1 | . . . . . . . . . . . . . 1 Smash 8 | . . . 2 6 . . . . . . . . . Sever 6 | . . . . . . . . . 2 3 . 1 . Impale 6 | . . . . . . . . 3 3 . . . . Melee Attacks 158 | . . . 16 14 . . . 34 45 13 . 34 2 Impact 30 | . . . 16 14 . . . . . . . . . Slashing 69 | . . . . . . . . . 20 13 . 34 2 Piercing 59 | . . . . . . . . 34 25 . . . . Sneak Attacks 14 | . . . . 2 . . . 7 5 . . . . Combat Hostiles . | . . . . . . . . . . . . . . Follow-up Attacks 38 | . . . 2 3 . . . 10 11 2 . 10 . Damage Inflicted 7342 | 37 307 220 884 428 . 869 . 1039 1466 390 . 1256 446 Guns 1726 | 37 283 220 477 32 . 636 . . . . . . 41 Cannons 405 | . . . . . . . . . . . . . 405 Explosions 233 | . . . . . . 233 . . . . . . . Melee 4954 | . . . 407 396 . . . 1039 1466 390 . 1256 . Ramming . | . . . . . . . . . . . . . . Kinetic 450 | . 84 131 235 . . . . . . . . . . Thermal 1229 | 37 223 89 242 . . 233 . . . . . . 405 Explosive . | . . . . . . . . . . . . . . Electromagnetic 709 | . . . . 32 . 636 . . . . . . 41 Impact 803 | . . . 407 396 . . . . . . . . . Slashing 2312 | . . . . . . . . . 666 390 . 1256 . Piercing 1839 | . . . . . . . . 1039 800 . . . . Highest Corruption 5 | . . . . 1 . 2 . 5 5 5 5 4 5 Average Corruption 4 | . . . . 1 . 1 . 3 5 5 5 3 2 Corruption Purged . | . . . . . . . . . . . . . . Corruption Blocked . | . . . . . . . . . . . . . . Effects 68 | . . . . 1 . 1 . 6 40 14 1 4 1 Message Errors 14 | . . . . . . . . 2 7 2 1 2 . Matter Fused 16 | . . . . . . 1 . 2 9 3 . 1 . Heat Flow Errors 11 | . . . . . . . . . 7 2 . 1 1 Energy Discharges 10 | . . . . . . . . . 6 4 . . . Parts Rejected 1 | . . . . . . . . . 1 . . . . Data Loss (minor) 6 | . . . . . . . . 1 3 2 . . . Data Loss (major) 10 | . . . . 1 . . . 1 7 1 . . . Overload Shots . | . . . . . . . . . . . . . . Overflow Damage 595 | . . . 90 218 . . . 136 57 . . 44 50 Projectiles 50 | . . . . . . . . . . . . . 50 Explosions . | . . . . . . . . . . . . . . Melee 545 | . . . 90 218 . . . 136 57 . . 44 . Knockbacks 2 | . . . 1 1 . . . . . . . . . Impact 2 | . . . 1 1 . . . . . . . . . Kinetic . | . . . . . . . . . . . . . . Secondary . | . . . . . . . . . . . . . . Self-Inflicted Damage 143 | . . . . . . 143 . . . . . . . Shots 3 | . . . . . . 3 . . . . . . . Rammed . | . . . . . . . . . . . . . . Targets Rammed . | . . . . . . . . . . . . . . Kicked . | . . . . . . . . . . . . . . Crushed . | . . . . . . . . . . . . . . Highest Temperature 513 | 24 204 48 513 138 . 160 . . 230 189 . 206 156 Average Temperature 62 | 12 56 21 84 23 . 52 . . 100 89 . 84 57 Received Heat Transfer 1026 | . 96 57 336 63 . 222 . 72 . . . 180 . Effects 2 | . . . 2 . . . . . . . . . . Energy Bleed 2 | . . . 2 . . . . . . . . . . Siege Activations . | . . . . . . . . . . . . . . Martial Activations . | . . . . . . . . . . . . . . Shielding Activations . | . . . . . . . . . . . . . . Robots Disrupted 1 | . . . . . . 1 . . . . . . . Combat Hostiles 1 | . . . . . . 1 . . . . . . . Robots Corrupted 6 | . . . 2 4 . . . . . . . . . Combat Hostiles 4 | . . . 1 3 . . . . . . . . . Parts Fried 8 | . . . 1 3 . 4 . . . . . . . Impact Corruptions 13 | . . . 4 9 . . . . . . . . . Robots Melted 2 | . . . 1 . . . . . . . . . 1 Combat Hostiles 2 | . . . 1 . . . . . . . . . 1 Parts Melted 9 | . 1 1 3 . . . . . . . . . 4 Heat Transferred 2507 | 111 642 333 851 . . 200 . . . . . . 370 Parts Sabotaged . | . . . . . . . . . . . . . . Parts Stolen . | . . . . . . . . . . . . . . Parts Stripped . | . . . . . . . . . . . . . . Power Chain Reactions 5 | . . . . . . 5 . . . . . . . Alert | -11 -10 -10 -9 -8 -7 -7 -6 -5 -5 -5 -5 -4 -4 ------- Run | Yrd Mat Min Mat Mat Fac DSF Fac Fac Upp Upp War Pro Fac Maximum Alert Level . | . . . . . . . . . . . . . . Low Security (%) 100 | 100 100 100 100 100 100 100 100 100 . . . . 100 Level 1 . | . . . . . . . . . . . . . . Level 2 . | . . . . . . . . . . . . . . Level 3 . | . . . . . . . . . . . . . . Level 4 . | . . . . . . . . . . . . . . Level 5 . | . . . . . . . . . . . . . . High Security . | . . . . . . . . . . . . . . Max Security . | . . . . . . . . . . . . . . Sterilizations 1 | . . . . . . 1 . . . . . . . Peak Influence 150 | 5 40 40 90 40 5 150 78 52 . . . . 30 Initial 78 | . . . . 4 . 3 78 . . . . . . Average 14 | . 7 5 16 4 . 82 23 9 . . . . 3 Influence Increases 1791 | 10 97 55 350 106 5 240 5 142 395 110 . 190 86 Destroy 0b10 Robot/C 1160 | . 60 40 200 60 . 160 . 100 260 80 . 160 40 Destroy 0b10 Robot/NC 65 | 10 10 5 10 10 . 5 . 10 . . . . 5 Destroy Leader 282 | . 24 10 74 34 . 30 . 30 30 . . 30 20 Successful Hack 17 | . . . 7 . 5 . 5 . . . . . . Disable Machine 15 | . . . . . . . . . . . . . 15 Destroy Structure 42 | . 3 . 14 2 . 15 . 2 . . . . 6 Lose Combat Pursuer 210 | . . . 45 . . 30 . . 105 30 . . . Influence Decreases 1791 | 10 97 55 339 117 . 95 155 122 182 329 14 188 88 Entered New Map 150 | . . . . 7 . 2 72 . 8 45 14 . 2 Time Decay 1342 | 10 87 55 241 110 . . 83 92 144 264 . 188 68 Lost Part 221 | . 10 . 20 . . 93 . 30 30 20 . . 18 Purge Threat 78 | . . . 78 . . . . . . . . . . Squads Dispatched 10 | . 1 . 2 . . 2 . 4 . . . . 1 Investigation 2 | . 1 . 1 . . . . . . . . . . Extermination 2 | . . . . . . . . 1 . . . . 1 Reinforcement 3 | . . . 1 . . 2 . . . . . . . Assault . | . . . . . . . . . . . . . . Garrison 3 | . . . . . . . . 3 . . . . . Intercept . | . . . . . . . . . . . . . . Searches Triggered . | . . . . . . . . . . . . . . Construction Impeded . | . . . . . . . . . . . . . . Haulers Reinforced . | . . . . . . . . . . . . . . Active Scanning Responses . | . . . . . . . . . . . . . . Cargo Convoy Interrupts . | . . . . . . . . . . . . . . Stealth | -11 -10 -10 -9 -8 -7 -7 -6 -5 -5 -5 -5 -4 -4 --------- Run | Yrd Mat Min Mat Mat Fac DSF Fac Fac Upp Upp War Pro Fac Distress Signals 2 | . . . . . . . . . . . 1 . 1 Communications Jammed . | . . . . . . . . . . . . . . Distress Signals . | . . . . . . . . . . . . . . Times Spotted 85 | . 5 2 14 4 . 14 . 6 20 6 1 8 5 Peak Tracking Total 12 | . 2 2 4 1 . 3 . 2 5 5 12 3 2 Tactical Retreats 12 | . . . 2 . . 2 . . 6 2 . . . Traps | -11 -10 -10 -9 -8 -7 -7 -6 -5 -5 -5 -5 -4 -4 ------- Run | Yrd Mat Min Mat Mat Fac DSF Fac Fac Upp Upp War Pro Fac Traps Triggered 1 | . 1 . . . . . . . . . . . . Indirectly . | . . . . . . . . . . . . . . Trap Hack Attempts . | . . . . . . . . . . . . . . Triggered . | . . . . . . . . . . . . . . Disarmed . | . . . . . . . . . . . . . . Reprogrammed . | . . . . . . . . . . . . . . Reused . | . . . . . . . . . . . . . . Traps Extracted . | . . . . . . . . . . . . . . Installed . | . . . . . . . . . . . . . . Triggered . | . . . . . . . . . . . . . . Machines | -11 -10 -10 -9 -8 -7 -7 -6 -5 -5 -5 -5 -4 -4 ---------- Run | Yrd Mat Min Mat Mat Fac DSF Fac Fac Upp Upp War Pro Fac Machines Disabled 2 | . . . . . . . . . 1 . . . 1 Max in Single Turn 1 | . . . . . . . . . 1 . . . 1 Garrison Access 1 | . . . . . . . 1 . . . . . . Machines Repaired . | . . . . . . . . . . . . . . Machines Dismantled . | . . . . . . . . . . . . . . Machines Sabotaged . | . . . . . . . . . . . . . . Overloaded Fab Kills . | . . . . . . . . . . . . . . Hacking | -11 -10 -10 -9 -8 -7 -7 -6 -5 -5 -5 -5 -4 -4 --------- Run | Yrd Mat Min Mat Mat Fac DSF Fac Fac Upp Upp War Pro Fac Machines Accessed 20 | . 1 . 4 2 1 . 2 2 1 1 5 . 1 Terminals 7 | . . . 3 1 1 . . 1 . 1 . . . Fabricators 1 | . . . . . . . 1 . . . . . . Repair Stations 2 | . . . 1 1 . . . . . . . . . Recycling Units 3 | . 1 . . . . . . 1 . . . . 1 Scanalyzers . | . . . . . . . . . . . . . . Garrison Access 1 | . . . . . . . 1 . . . . . . Total Hacks 39 | . 1 . 10 4 1 . 4 3 1 1 12 . 2 Successful 33 | . 1 . 9 4 1 . 2 1 1 1 12 . 1 Failed 6 | . . . 1 . . . 2 2 . . . . 1 Catastrophic 3 | . . . 1 . . . 2 . . . . . . Database Lockouts . | . . . . . . . . . . . . . . Manual 14 | . 2 . 6 2 . . 4 . . . . . . Terminals 12 | . . . 7 2 1 . . 1 . 1 . . . Fabricators 1 | . . . . . . . 1 . . . . . . Repair Stations 5 | . . . 3 2 . . . . . . . . . Recycling Units 5 | . 1 . . . . . . 2 . . . . 2 Scanalyzers . | . . . . . . . . . . . . . . Garrison Access 3 | . . . . . . . 3 . . . . . . Terminal Hacks 20 | . . . 3 1 1 . . 1 1 1 12 . . Record 12 | . . . 1 . . . . . . 1 10 . . Open Door 3 | . . . . . . . . . 1 . 2 . . Open DSF 2 | . . . . . 1 . . 1 . . . . . Alert Level 2 | . . . 1 1 . . . . . . . . . Unreport Threat 1 | . . . 1 . . . . . . . . . . Fabricator Hacks 1 | . . . . . . . 1 . . . . . . Build 1 | . . . . . . . 1 . . . . . . Repair Station Hacks 5 | . . . 3 2 . . . . . . . . . Scan Component 3 | . . . 2 1 . . . . . . . . . Repair 2 | . . . 1 1 . . . . . . . . . Recycling Unit Hacks 1 | . . . . . . . . . . . . . 1 Retrieve Components 1 | . . . . . . . . . . . . . 1 Scanalyzer . | . . . . . . . . . . . . . . Garrison Access Hacks 1 | . . . . . . . 1 . . . . . . Seal Access 1 | . . . . . . . 1 . . . . . . Unauthorized Hacks 5 | . 1 . 3 1 . . . . . . . . . Terminals 4 | . . . 3 1 . . . . . . . . . Botnet 4 | . . . 3 1 . . . . . . . . . Fabricators . | . . . . . . . . . . . . . . Repair Stations . | . . . . . . . . . . . . . . Recycling Units 1 | . 1 . . . . . . . . . . . . Recyclers 1 | . 1 . . . . . . . . . . . . Scanalyzers . | . . . . . . . . . . . . . . Garrison Access . | . . . . . . . . . . . . . . Data Cores Recovered . | . . . . . . . . . . . . . . Used . | . . . . . . . . . . . . . . Hacking Detections 10 | . 1 . 4 2 . . 1 1 . 1 . . . Full Trace Events 1 | . . . 1 . . . . . . . . . . Feedback Events . | . . . . . . . . . . . . . . Feedback Blocked . | . . . . . . . . . . . . . . Robot Schematics Acquired . | . . . . . . . . . . . . . . Robots Built 4 | . . . . . . . 4 . . . . . . Authchips . | . . . . . . . . . . . . . . Time 81 | . . . . . . . 81 . . . . . . Total Robot Build Rating 4 | . . . . . . . 4 . . . . . . Part Schematics Acquired . | . . . . . . . . . . . . . . Parts Built . | . . . . . . . . . . . . . . Authchips . | . . . . . . . . . . . . . . Time . | . . . . . . . . . . . . . . Total Part Build Rating . | . . . . . . . . . . . . . . Part Studies Acquired . | . . . . . . . . . . . . . . Parts Repaired 2 | . . . 1 1 . . . . . . . . . Time 52 | . . . 26 26 . . . . . . . . . Parts Recycled . | . . . . . . . . . . . . . . Recycled Matter . | . . . . . . . . . . . . . . Retrieved Matter . | . . . . . . . . . . . . . . Retrieved Components 1 | . . . . . . . . . . . . . 1 Parts Scanalyzed . | . . . . . . . . . . . . . . Part Schematics Acquired . | . . . . . . . . . . . . . . Parts Damaged . | . . . . . . . . . . . . . . Bothacking | -11 -10 -10 -9 -8 -7 -7 -6 -5 -5 -5 -5 -4 -4 ------------ Run | Yrd Mat Min Mat Mat Fac DSF Fac Fac Upp Upp War Pro Fac Used RIF Installer . | . . . . . . . . . . . . . . Robots Hacked . | . . . . . . . . . . . . . . Non-combat . | . . . . . . . . . . . . . . Combat . | . . . . . . . . . . . . . . Robot Hacks Applied . | . . . . . . . . . . . . . . Relay Couplers Released . | . . . . . . . . . . . . . . Fabnet Peak Effective % . | . . . . . . . . . . . . . . Robots Rewired . | . . . . . . . . . . . . . . Allies Hacked . | . . . . . . . . . . . . . . Hacks Repelled . | . . . . . . . . . . . . . . Allies | -11 -10 -10 -9 -8 -7 -7 -6 -5 -5 -5 -5 -4 -4 -------- Run | Yrd Mat Min Mat Mat Fac DSF Fac Fac Upp Upp War Pro Fac Total Allies 4 | . . . . . . . 4 . . . . . . Largest Group 4 | . . . . . . . 4 4 . . . . . Highest-Rated Group 24 | . . . . . . . 24 24 . . . . . Highest-Rated Ally 6 | . . . . . . . 6 6 . . . . . Initial Warlord ECA Mod 9 | . . . . . . . 9 8 8 8 8 7 7 Total Orders . | . . . . . . . . . . . . . . Ally Attacks . | . . . . . . . . . . . . . . Total Damage . | . . . . . . . . . . . . . . Kills . | . . . . . . . . . . . . . . Allies Corrupted . | . . . . . . . . . . . . . . Allies Melted 1 | . . . . . . . . . . . 1 . . Intel | -11 -10 -10 -9 -8 -7 -7 -6 -5 -5 -5 -5 -4 -4 ------- Run | Yrd Mat Min Mat Mat Fac DSF Fac Fac Upp Upp War Pro Fac Active Infowar (turns) 3821 | 24 423 360 1173 689 73 59 296 150 . . . . 574 Sensors 574 | . . . . . . . . . . . . . 574 Seismic 3247 | 24 423 360 1173 689 73 59 296 150 . . . . . Robot Analysis Total . | . . . . . . . . . . . . . . Derelict Logs Recovered 6 | . . 3 . . . . . . 2 1 . . . Drone Launches . | . . . . . . . . . . . . . . Drone Recoveries . | . . . . . . . . . . . . . . Exploration | -11 -10 -10 -9 -8 -7 -7 -6 -5 -5 -5 -5 -4 -4 ------------- Run | Yrd Mat Min Mat Mat Fac DSF Fac Fac Upp Upp War Pro Fac Turns Passed 8821 | 131 423 360 1173 689 73 281 296 528 1607 615 1264 652 729 Spaces Moved 4339 | 66 195 204 424 320 45 125 164 272 873 333 734 345 239 Core 50 | 9 . . 8 . . . . . . . . 20 13 Treads 3408 | 57 195 204 40 320 45 61 . 140 873 333 734 325 81 Legs 736 | . . . 376 . . 64 164 132 . . . . . Wheels . | . . . . . . . . . . . . . . Hover 145 | . . . . . . . . . . . . . 145 Flight . | . . . . . . . . . . . . . . Fastest Speed 50 | 50 160 160 120 160 160 120 120 120 168 166 170 100 116 Average Speed 157 | 145 160 160 128 160 160 148 120 145 169 168 170 161 138 Slowest Speed 350 | 160 160 160 350 160 160 245 120 190 170 170 170 170 250 Overloaded Moves . | . . . . . . . . . . . . . . Propulsion Burnouts . | . . . . . . . . . . . . . . Robots Hopped . | . . . . . . . . . . . . . . Potential Cave-ins 14 | . . . 6 8 . . . . . . . . . Cave-ins Triggered 2 | . . . . 2 . . . . . . . . . Exploration Rate (%) 35 | 4 28 36 25 19 1 76 3 12 93 49 89 51 5 Regions Visited 13 Branch Regions 5 Pre-discovered Areas 3 | . . 1 . . . . . . 2 . . . . Known Exits Taken 3 | . . . . . 1 . . 1 . 1 . . . Unknown Exits Taken 9 | 1 1 1 1 1 . . 1 . 1 . 1 1 . Scrap Searched 3 | . . . . . . . . . 2 1 . . . Spaces Dug 35 | . 2 . 18 12 . . . 1 1 . . . 1 Terrain Destroyed 53 | . 3 . 18 12 . 15 . 1 1 . . . 3 Melee 3 | . . . . . . . . 1 1 . . . 1 Projectile 35 | . 3 . 18 12 . . . . . . . . 2 AOE 15 | . . . . . . 15 . . . . . . . Terrain Rammed . | . . . . . . . . . . . . . . Walls Destroyed . | . . . . . . . . . . . . . . Machines Disabled . | . . . . . . . . . . . . . . Actions | -11 -10 -10 -9 -8 -7 -7 -6 -5 -5 -5 -5 -4 -4 --------- Run | Yrd Mat Min Mat Mat Fac DSF Fac Fac Upp Upp War Pro Fac Total 5897 | 96 265 216 926 437 46 176 266 368 950 372 751 404 624 Wait 992 | 9 34 . 377 62 . 4 81 45 11 12 16 27 314 Move 4326 | 65 194 203 423 319 44 124 163 271 872 332 733 344 239 Hop . | . . . . . . . . . . . . . . Pick Up 128 | 13 8 . 23 14 . 15 5 10 7 5 . 8 20 Fast Attach 10 | 1 . 1 1 . . . . 3 2 . . . 2 Attach 92 | 5 2 . 13 7 2 11 9 7 6 5 1 3 21 Detach 3 | . . . . 1 . . 1 . . . . . 1 Swap 21 | 1 2 . 11 4 . 1 1 . . . . . 1 Drop 71 | . 6 1 20 5 . 2 6 10 7 2 1 . 11 Fire 123 | 2 19 11 45 14 . 19 . . . . . . 13 Melee 111 | . . . 13 11 . . . 22 31 10 . 22 2 Ram . | . . . . . . . . . . . . . . Kick . | . . . . . . . . . . . . . . Crush . | . . . . . . . . . . . . . . Escape Stasis . | . . . . . . . . . . . . . . Rewire 20 | . . . . . . . . . 14 6 . . . Trap . | . . . . . . . . . . . . . . Miscellaneous . | . . . . . . . . . . . . . . Route ------- -11/Scrapyard -10/Materials -10/Mines -9/Materials -8/Materials -7/Factory -7/DSF -6/Factory -5/Factory -5/Upper Caves -5/Upper Caves -5/Warlord -4/Proximity Caves -4/Factory History --------- Turn | Location | Event 15 | -11/Scrapyard | Discovered new exit (range 15) 132 | -11/Scrapyard | Entered Materials 321 | -10/Materials | Build established: Mutant 465 | -10/Materials | Discovered new exit (range 7) 555 | -10/Materials | Entered Mines 586 | -10/Mines | Met a Derelict bent on vengeance 637 | -10/Mines | Discovered new exit (range 9) 693 | -10/Mines | Learned Materials emergency access door positions 758 | -10/Mines | Learned Materials stockpile data 915 | -10/Mines | Entered Materials 915 | -9/Materials | Evolved 2 slots: Propulsion x1, Weapon x1 1261 | -9/Materials | Build established: Gunner 1281 | -9/Materials | Repaired Mining Laser 1846 | -9/Materials | Discovered new exit (range 11) 1974 | -9/Materials | Core integrity fell below 50% 2088 | -9/Materials | Entered another Materials area 2088 | -8/Materials | Evolved 2 slots: Propulsion x1, Utility x1 2285 | -8/Materials | Build established: Mutant 2515 | -8/Materials | Crushed by falling debris 2516 | -8/Materials | Crushed by falling debris 2589 | -8/Materials | Discovered new exit (range 16) 2685 | -8/Materials | Repaired Lgt. Treads 2777 | -8/Materials | Entered Factory 2777 | -7/Factory | Evolved 2 slots: Utility x1, Weapon x1 2848 | -7/Factory | Identified exit to DSF 2850 | -7/Factory | Entered DSF 2879 | -7/DSF | Additional patrols routed to DSF 2933 | -7/DSF | Build established: Tank 3006 | -7/DSF | Lost 6 parts (2n1u3w) 3082 | -7/DSF | Sterilization system engaged 3102 | -7/DSF | Ambient heat levels rising (+10) 3102 | -7/DSF | Lost 3 parts (3w) 3110 | -7/DSF | Discovered new exit (range 15) 3117 | -7/DSF | Ambient heat levels rising (+10) 3131 | -7/DSF | Entered Factory 3131 | -6/Factory | Evolved 2 slots: Propulsion x1, Utility x1 3379 | -6/Factory | Fabricated K-01 Serf (x4) 3416 | -6/Factory | Discovered new exit (range 7) 3427 | -6/Factory | Entered another Factory area 3427 | -5/Factory | Accompanied by 4 allies 3427 | -5/Factory | Evolved 2 slots: Utility x2 3556 | -5/Factory | Identified exit to DSF 3598 | -5/Factory | Garrison activated, responded to threat 3607 | -5/Factory | Lost 3 allies 3653 | -5/Factory | Lost 3 parts (2n1u) 3899 | -5/Factory | Build established: Gladiator 3930 | -5/Factory | Discovered new exit (range 6) 3953 | -5/Factory | Identified exit to Upper Caves 3955 | -5/Factory | Entered Upper Caves 3962 | -5/Upper Caves | Met a Warlord Commander 3963 | -5/Upper Caves | Learned location of Warlord (-5) 3964 | -5/Upper Caves | Warlord Commander delivered Encrypted Comm Array 3971 | -5/Upper Caves | Found Encrypted Comm Array 4080 | -5/Upper Caves | Attacked by a delusional Derelict stockpiling Unaware 4445 | -5/Upper Caves | Lost 4 parts (1p2n1w) 4913 | -5/Upper Caves | Encountered a Warlord checkpoint 5026 | -5/Upper Caves | Learned location of Armory (-3) 5041 | -5/Upper Caves | Learned Factory security intel 5405 | -5/Upper Caves | Build established: Derelict-Gladiator 5500 | -5/Upper Caves | Destroyed 8 combat bots 5551 | -5/Upper Caves | Discovered new exit (range 7) 5562 | -5/Upper Caves | Entered another Upper Caves area 5615 | -5/Upper Caves | Identified exit to Warlord 5889 | -5/Upper Caves | Attracted the attention of an 0b10 checkpoint 6075 | -5/Upper Caves | Lost 4 parts (1p2n1w) 6177 | -5/Upper Caves | Entered Warlord 6218 | -5/Warlord | Discovered new exit (range 15) 6254 | -5/Warlord | System corruption cleaned by Quarantine Array 7013 | -5/Warlord | Met Warlord 7038 | -5/Warlord | Warlord's base attacked by MAIN.C 7388 | -5/Warlord | Warlord forces counterattacked 7393 | -5/Warlord | Opened side exit 7438 | -5/Warlord | Spotted Executioner 7441 | -5/Warlord | Entered Proximity Caves 7583 | -4/Proximity Caves | Attracted the attention of an 0b10 checkpoint 7797 | -4/Proximity Caves | Spotted B-86 Titan 7839 | -4/Proximity Caves | Core integrity fell below 50% 7865 | -4/Proximity Caves | Destroyed B-86 Titan 7895 | -4/Proximity Caves | Lost 6 parts (1p3n2u) 8043 | -4/Proximity Caves | Discovered new exit (range 13) 8093 | -4/Proximity Caves | Entered Factory 8093 | -4/Factory | Evolved 2 slots: Utility x2 8822 | -4/Factory | Self-destructed Last Messages --------------- to Factory Zone 5O. 08742_ Acquired Com. Matter Pod. 08748_ Destroyed Terrain Scanner. 08748_ U-05 Engineer destroyed. 08750_ ALERT: All DSF locations entering lockdown mode. 08763_ Destroyed Imp. Heat Sink. 08765_ P-70 Sage destroyed. 08772_ Acquired 45 matter. 08773_ R-10 Processor collects Mic. Fission Core. 08776_ Destroyed Com. Wheel. 08796_ R-10 Processor sends out distress signal. 08798_ Lgt. Particle Reactor destroyed. 08804_ U-05 Engineer builds a Wall. 08808_ K-01 Serf collects debris. 08810_ Imp. Propulsion Shielding destroyed. 08812_ Assembly Bed disabled. 08814_ Destroyed Hpw. Shock Rifle. 08819_ K-01 Serf collects debris. 08820_ System corrupted: Heat flow error (+138). 08821_ Imp. Antigrav System destroyed. Map ----- +----------------------------------------------------+ | ???????????????????????????### ##################? | | ???????????????????????????# ! # #? | | ???????????????????????????# "" "" # """ #? | | ?????????????????????????### ! "F "" # """"" #? | | ?????????????????????????# + """"" # """"" #? | | ?????????????????????????# # ! # #? | | ?????????????????????????# #####/###########+##### | | ?????????????????????????# | | ?????????????????????????#######+#####+##### ##### | | ???????????????????????????????# # #???? | | ???????????????????????????????# "" "" # #???? | | ???????????????????????????????# "" "" # #???? | | ???????????????????????????????# "" """ # #???? | | ???????????????????????????????# """ """ # ???? | | ???????????????????????????????# """ """ # ???? | | ???????????????????????????????# + ???? | | ???????????????????????????????# "" "" #^ ???? | | ?????????????????????########### "" "" + ???? | | ?????????????????????# # """ """ ?? ???? | | ?????????????????????# """""" # """ """??? ???? | | ?????????????????????# """""" # """ """ # ???? | | ?????????????????????# """""" # # ???? | | ?????????????????????# "" " " #/##########??????? | | ?????????????????????# # #???????????????? | | ?????????????????????# kk # #???????????????? | | ?????????????????????# @ p # #???????????????? | | ????????????????##########p##### ###?????????????? | | ???????????????# #?????????? | | ???????????????# #?????????? | | ???????????????+ #?????????? | | ???????????????# * #??????????? | | ???????????????# % #??????????? | | ???????????????# ######### #???????????? | | ???????????????# ????????# #??????????? | | ?????????????? ?????????# #???????????? | | ????????????? ??????????# #???????????? | | ???????????? ??????????# #????????????? | | ????????????? ???????????+ +????????????? | | ????????????? ????????????# # ????????????? | | ???????????????#?????????????# # "???????????? | | ?????????????????????????????# #?????????????? | | ?????????????????????????????? ?????????????? | | ?????????????????????????????? ???????????????? | | ?????????????????????????????????????????????????? | | ?????????????????????????????????????????????????? | | ?????????????????????????????????????????????????? | | ?????????????????????????????????????????????????? | | ?????????????????????????????????????????????????? | | ?????????????????????????????????????????????????? | | ?????????????????????????????????????????????????? | +----------------------------------------------------+ Best States ------------- Heat Dissipation 71 Energy Generation 23 Energy Capacity 315 Matter Stores 300 Matter Capacity 300 Sight Range 16 Robot Scan Range 16 Terrain Scan Density 10 Additional Mass Support 9 Armor Coverage 600 Propulsion Shielding 66 Evasion (%) 55 Targeting Accuracy 6 Melee Accuracy 20 Target Analysis 6 Recoil Reduction 5 Kinecelleration 40 Defensive Hacking 10 Authchip Count 5 Item Schematics ----------------- None Robot Schematics ------------------ None Fabricated ------------ K-01 Serf | x4 | -6/Factory | Preloaded Repaired ---------- Mining Laser | 13% | -9/Materials Lgt. Treads | 8% | -8/Materials Studied --------- None Alien Tech Used ----------------- None Achievements -------------- Deductive Reasoning Heavy Suspicion Hot Goods I Like You, Cogmind Overwhelming Respectable Loadout Throw Away The Key Well Done Window Shopping Challenges ------------ None Game ------ Seed InsulationPulsarMachine Manual? 0 Play Time 01:09:11 Cumulative 33.6 hours Start 2026.07.11 @ 09:52:14 End 2026.07.18 @ 14:19:25 Sessions 5 Manual Loads 0 Difficulty Rogue Special Mode None Game No. 59 Rogue 58 Adventurer 1 Explorer 0 Win Type - Total 0 Types 0/0/0/0/0/0/0/0/0/0 Lore% 30 Gallery% 27 Achievement% 17 Wizard Run 0 Options --------- Layout 0 ASCII 0 Keyboard 0 Movement Mouse Keybinds 0 Fullscreen 2 Font 18/SmallcapsGlow Map View 76x50 Zoom Use 1% Tactical HUD 1 Map Filters NONE Filters NONE Steam 1 RUN: c0858901-f3eb-409d-bc99-07ec09c770e2